Cogmind - Beta 15 @@@ ROGUE MODE // 2025.05.12 @ 19:19:13 Player: NuclearMayhem Result: Destroyed by G-47 Trooper with Particle Gun Performance ------------- Evolutions (1) 500 Regions Visited (5) 1000 Robots Destroyed (75) 375 Value Destroyed (1525) 1525 Prototype IDs (27) 540 Alien Tech Used (0) 0 Bonus (6) 6 TOTAL SCORE: 3946 Bonus ------- High Alert Combat Kills 6 Cogmind --------- Core Integrity 0/400 Matter 180/300 Energy 100/100 System Corruption 0% Temperature Cool (35) Movement Walking (263) Ox2 Location -8/Mines Parts ------- > --- POWER (1) -------- (None) > --- PROPULSION (4) --- Aluminum Leg Aluminum Leg Titanium Leg > --- UTILITY (2) ------ Huge Storage Unit Utility Shielding > --- WEAPON (2) ------- Autogun Autogun > --- INVENTORY (25) --- Heavy Ion Engine Aluminum Leg Aluminum Leg Makeshift Terrain Scan Processor Makeshift Transmission Jammer System Shield System Shield System Shield System Shield Improved Trap Extractor (0/6) Army-in-a-Box (30/30) Autogun Remote Datajack Flail Peak State ------------ > --- POWER ------------ Cooled Ion Engine > --- PROPULSION ------- Titanium Leg Titanium Leg Titanium Leg Improved Carbon-fiber Leg > --- UTILITY ---------- Huge Storage Unit Utility Shielding > --- WEAPON ----------- Autogun Flak Gun > --- INVENTORY -------- Heavy Ion Engine Cooled Ion Engine Aluminum Leg Aluminum Leg Aluminum Leg Titanium Leg High-capacity Battery Makeshift Transmission Jammer Shield Generator System Shield System Shield System Shield System Shield Improved Trap Extractor Army-in-a-Box Autogun Autogun Autogun Remote Datajack Flail [Rating: 34] Favorites ----------- Power Cooled Ion Engine Engine Cooled Ion Engine Propulsion Titanium Leg Leg Titanium Leg Wheel Wheel Utility Huge Storage Unit Storage Huge Storage Unit Processor Targeting Computer Protection Utility Shielding Weapon Autogun Energy Gun Improved EM Shotgun Ballistic Gun Autogun Impact Weapon Flail Build | -11 -10 -9 -9 -9 -8 ------- Run | Yrd Mat Mat Min Exi Min Slots Evolved 2 | . . 2 . . . Power . | . . . . . . Propulsion 2 | . . 2 . . . Utility . | . . . . . . Weapon . | . . . . . . Parts Attached 52 | 6 6 29 3 . 8 Power 7 | 1 1 3 1 . 1 Engine 7 | 1 1 3 1 . 1 Core . | . . . . . . Reactor . | . . . . . . Propulsion 24 | 2 5 12 1 . 4 Treads . | . . . . . . Leg 17 | 2 5 5 1 . 4 Wheel 7 | . . 7 . . . Hover . | . . . . . . Flight . | . . . . . . Utility 6 | 1 . 5 . . . Device . | . . . . . . Storage 2 | 1 . 1 . . . Processor 1 | . . 1 . . . Hackware . | . . . . . . Protection 3 | . . 3 . . . Artifact . | . . . . . . Weapon 15 | 2 . 9 1 . 3 Energy Gun 7 | 2 . 5 . . . Energy Cannon . | . . . . . . Ballistic Gun 7 | . . 4 1 . 2 Ballistic Cannon . | . . . . . . Launcher . | . . . . . . Special Weapon . | . . . . . . Impact Weapon 1 | . . . . . 1 Slashing Weapon . | . . . . . . Piercing Weapon . | . . . . . . Special Melee Weapon . | . . . . . . Unidentified Prototypes 4 | . . 4 . . . Parts Lost 14 | . . 5 . . 9 Power 1 | . . . . . 1 Propulsion 7 | . . 1 . . 6 Utility 2 | . . 2 . . . Weapon 4 | . . 2 . . 2 Highest Loss Streak 8 | . . 4 . . 8 To Critical Strikes . | . . . . . . Average Backups 18 | 3 7 16 24 21 19 Power 1 | . . 1 2 2 1 Propulsion 3 | 2 3 2 2 4 5 Utility 7 | . . 6 12 9 8 Weapon 5 | . 3 6 6 4 3 Tool/Special . | . . . . . . Unused Backups 36 | . 5 6 2 8 15 Power 4 | . 1 1 1 . 1 Propulsion 8 | . 2 2 . . 4 Utility 17 | . . 1 . 8 8 Weapon 6 | . 2 2 1 . 1 Tool/Special 1 | . . . . . 1 Average Slot Usage (%) 96 | . 85 92 100 100 97 Engine 11 | . 14 11 11 11 10 Leg 36 | . 28 21 44 44 42 Wheel 4 | . . 17 . . . Storage 11 | . 14 11 11 11 11 Protection 8 | . . 6 11 11 11 Energy Gun 9 | . 28 16 17 . . Ballistic Gun 12 | . . 5 4 22 21 Peak Build Rating 34 | 6 6 27 29 34 34 Average Rating 24 | 4 6 16 27 32 32 On Entrance 17 | . 6 6 27 29 34 Naked Turns . | . . . . . . Heaviest Build 101 | 12 14 101 96 96 96 Greatest Support 69 | 20 20 68 69 69 69 Greatest Overweight (x) 5 | 1 . 5 1 1 1 Average Overweight (x) . | . . 1 1 1 1 Largest Inventory Capacity 25 | 8 8 25 25 25 25 Average Capacity 21 | 7 8 19 25 25 25 Most Carried 25 | 6 8 25 25 25 25 Average Carried 20 | 3 7 16 24 24 24 Final Capacity 25 | 8 8 25 25 25 25 Final Carried 25 | 6 8 24 25 25 19 Class Distribution -------------------- 100% | Mutant Dominant Class ---------------- Mutant | -10/Materials Mutant | -9/Materials Mutant | -9/Mines Mutant | -9/Exiles Mutant | -8/Mines Resources | -11 -10 -9 -9 -9 -8 ----------- Run | Yrd Mat Mat Min Exi Min Matter Collected 1149 | 194 126 512 . . 317 Remotely . | . . . . . . Salvage Created 2448 | . 363 1340 185 . 560 Parts 161 | . 27 103 12 . 19 Haulers Intercepted 6 | . 1 5 . . . Recyclers Shooed 3 | . . 1 . . 2 Parts Field Recycled . | . . . . . . Retrieved Matter . | . . . . . . Parts Self-Destructed . | . . . . . . Prevented . | . . . . . . Kills | -11 -10 -9 -9 -9 -8 ------- Run | Yrd Mat Mat Min Exi Min Combat Hostiles Destroyed 51 | . 8 24 6 . 13 Melee 1 | . . . . . 1 Guns 48 | . 8 23 6 . 11 AOE 1 | . . 1 . . . Classes Destroyed 12 | . 4 6 . . 2 Worker 4 | . 1 3 . . . Builder 7 | . . 6 . . 1 Tunneler 1 | . . 1 . . . Hauler 6 | . 1 5 . . . Recycler 2 | . . 2 . . . Operator 1 | . . 1 . . . Watcher 3 | . . 3 . . . Swarmer 23 | . 3 16 4 . . Grunt 23 | . 5 6 2 . 10 Brawler 1 | . . . . . 1 Duelist 2 | . . . . . 2 Sentry 2 | . . 2 . . . Best Kill Streak 22 | . 5 22 4 . 4 Combat Bots Only 6 | . 5 6 4 . 4 Max Kills in Single Turn 2 | . 1 2 2 . 1 Gunslinging 1 | . . 1 1 . . Exploded 1 | . . 1 . . . Melee 1 | . . . . . 1 Uniques/NPCs Destroyed . | . . . . . . Combat | -11 -10 -9 -9 -9 -8 -------- Run | Yrd Mat Mat Min Exi Min Hostile Shots Fired 318 | . 29 154 19 . 116 Missed 79 | . 7 46 2 . 24 Hits 239 | . 22 108 17 . 92 Melee 6 | . . . . . 6 Projectile 233 | . 22 108 17 . 86 Critical Strikes 8 | . . . . . 8 Damage Taken 2991 | . 232 987 196 . 1576 Core 455 | . 41 53 58 . 303 Absorbed by Shields . | . . . . . . Redirected to Shielding 19 | . . . 10 . 9 Core Remaining (%) 91 | 100 83 . . . . Volleys Fired 132 | . 15 70 7 . 40 Largest 2 | . 2 2 2 . 2 Hottest 90 | . 80 90 90 . 51 Shots Fired 263 | . 30 140 14 . 79 Gun 263 | . 30 140 14 . 79 Cannon . | . . . . . . Launcher . | . . . . . . Special . | . . . . . . Kinetic 139 | . . 60 . . 79 Thermal . | . . . . . . Explosive . | . . . . . . Electromagnetic 124 | . 30 80 14 . . Robot Hit Streak 10 | . 4 10 5 . 8 Robot Miss Streak 7 | . 2 5 3 . 7 Penetration Max . | . . . . . . Secondary Targets 15 | . 3 6 2 . 4 Max Gunslinging Chain 1 | . 1 1 1 . 1 Shots Hit Robots 195 | . 20 97 11 . 67 Core Hits 134 | . 13 55 9 . 57 Critical Kills . | . . . . . . Critical Parts Destroyed . | . . . . . . Critical Strikes 1 | . 1 . . . . Corrupt 1 | . 1 . . . . Melee Attacks 5 | . . . . . 5 Impact 5 | . . . . . 5 Slashing . | . . . . . . Piercing . | . . . . . . Sneak Attacks . | . . . . . . Combat Hostiles . | . . . . . . Follow-up Attacks . | . . . . . . Damage Inflicted 3277 | . 274 1635 172 . 1196 Guns 2891 | . 274 1441 172 . 1004 Cannons . | . . . . . . Explosions 194 | . . 194 . . . Melee 192 | . . . . . 192 Ramming . | . . . . . . Kinetic 1558 | . . 554 . . 1004 Thermal 194 | . . 194 . . . Explosive . | . . . . . . Electromagnetic 1333 | . 274 887 172 . . Impact 192 | . . . . . 192 Slashing . | . . . . . . Piercing . | . . . . . . Highest Corruption . | . . . . . . Average Corruption . | . . . . . . Corruption Purged . | . . . . . . Corruption Blocked . | . . . . . . Overload Shots . | . . . . . . Overflow Damage 33 | . . . . . 33 Projectiles . | . . . . . . Explosions . | . . . . . . Melee 33 | . . . . . 33 Knockbacks . | . . . . . . Impact . | . . . . . . Kinetic . | . . . . . . Secondary . | . . . . . . Self-Inflicted Damage . | . . . . . . Shots . | . . . . . . Rammed . | . . . . . . Targets Rammed . | . . . . . . Kicked . | . . . . . . Crushed . | . . . . . . Highest Temperature 212 | . 186 212 117 . 48 Average Temperature 44 | . 74 44 48 . 12 Received Heat Transfer 1212 | . 102 138 81 . 891 Siege Activations . | . . . . . . Martial Activations . | . . . . . . Shielding Activations . | . . . . . . Robots Disrupted . | . . . . . . Combat Hostiles . | . . . . . . Robots Corrupted 2 | . . 1 . . 1 Combat Hostiles 1 | . . . . . 1 Parts Fried 10 | . 1 6 . . 3 Impact Corruptions 2 | . . . . . 2 Robots Melted . | . . . . . . Combat Hostiles . | . . . . . . Parts Melted . | . . . . . . Heat Transferred 200 | . . 200 . . . Parts Sabotaged . | . . . . . . Parts Stolen . | . . . . . . Parts Stripped . | . . . . . . Power Chain Reactions 4 | . . 4 . . . Alert | -11 -10 -9 -9 -9 -8 ------- Run | Yrd Mat Mat Min Exi Min Maximum Alert Level 2 | . . 2 1 . . Low Security (%) 75 | 100 100 57 72 . 100 Level 1 19 | . . 32 27 . . Level 2 4 | . . 9 . . . Level 3 . | . . . . . . Level 4 . | . . . . . . Level 5 . | . . . . . . High Security . | . . . . . . Max Security . | . . . . . . Peak Influence 437 | . 155 437 250 . 119 Initial 160 | . . 52 160 . . Average 140 | . 51 195 170 . 75 Influence Increases 1428 | . 202 737 140 . 349 Destroy 0b10 Robot/C 1020 | . 160 480 120 . 260 Destroy 0b10 Robot/NC 120 | . 10 105 . . 5 Destroy Leader 188 | . 32 86 20 . 50 Allied During Kill 4 | . . . . . 4 Successful Hack 10 | . . 10 . . . Disable Machine 15 | . . 15 . . . Destroy Structure 11 | . . 11 . . . Lose Combat Pursuer 60 | . . 30 . . 30 Influence Decreases 1339 | . 77 449 451 102 260 Entered New Map 428 | . . 73 253 102 . Time Decay 751 | . 77 326 198 . 150 Lost Part 140 | . . 50 . . 90 Lost Ally 20 | . . . . . 20 Squads Dispatched 4 | . 2 1 1 . . Investigation 4 | . 2 1 1 . . Extermination . | . . . . . . Reinforcement . | . . . . . . Assault . | . . . . . . Garrison . | . . . . . . Intercept . | . . . . . . Searches Triggered . | . . . . . . Construction Impeded . | . . . . . . Haulers Reinforced . | . . . . . . Active Scanning Responses . | . . . . . . Cargo Convoy Interrupts . | . . . . . . Stealth | -11 -10 -9 -9 -9 -8 --------- Run | Yrd Mat Mat Min Exi Min Distress Signals 1 | . . 1 . . . Communications Jammed . | . . . . . . Distress Signals . | . . . . . . Times Spotted 65 | . 8 35 5 . 17 Peak Tracking Total 6 | . 5 6 3 . 6 Tactical Retreats 2 | . . 1 . . 1 Traps | -11 -10 -9 -9 -9 -8 ------- Run | Yrd Mat Mat Min Exi Min Traps Triggered 2 | . 2 . . . . Indirectly . | . . . . . . Trap Hack Attempts . | . . . . . . Triggered . | . . . . . . Disarmed . | . . . . . . Reprogrammed . | . . . . . . Reused . | . . . . . . Traps Extracted . | . . . . . . Installed . | . . . . . . Triggered . | . . . . . . Machines | -11 -10 -9 -9 -9 -8 ---------- Run | Yrd Mat Mat Min Exi Min Machines Disabled 1 | . . 1 . . . Max in Single Turn 1 | . . 1 . . . Machines Repaired . | . . . . . . Machines Dismantled . | . . . . . . Machines Sabotaged . | . . . . . . Overloaded Fab Kills . | . . . . . . Hacking | -11 -10 -9 -9 -9 -8 --------- Run | Yrd Mat Mat Min Exi Min Machines Accessed 8 | . 2 4 1 1 . Terminals 5 | . 2 3 . . . Fabricators . | . . . . . . Repair Stations . | . . . . . . Recycling Units . | . . . . . . Scanalyzers 1 | . . 1 . . . Garrison Access . | . . . . . . Total Hacks 17 | . 4 11 1 1 . Successful 10 | . 1 7 1 1 . Failed 7 | . 3 4 . . . Catastrophic 2 | . 1 1 . . . Database Lockouts . | . . . . . . Manual 12 | . 4 7 . 1 . Terminals 11 | . 4 7 . . . Fabricators . | . . . . . . Repair Stations . | . . . . . . Recycling Units . | . . . . . . Scanalyzers 4 | . . 4 . . . Garrison Access . | . . . . . . Terminal Hacks 2 | . . . 1 1 . Open Door 1 | . . . 1 . . Proto ID Catalog 1 | . . . . 1 . Fabricator Hacks . | . . . . . . Repair Station Hacks . | . . . . . . Recycling Unit Hacks . | . . . . . . Scanalyzer 4 | . . 4 . . . Insert Component 2 | . . 2 . . . Analyze 2 | . . 2 . . . Garrison Access Hacks . | . . . . . . Unauthorized Hacks 4 | . 1 3 . . . Terminals 4 | . 1 3 . . . Botnet 3 | . 1 2 . . . Operators 1 | . . 1 . . . Fabricators . | . . . . . . Repair Stations . | . . . . . . Recycling Units . | . . . . . . Scanalyzers . | . . . . . . Garrison Access . | . . . . . . Data Cores Recovered . | . . . . . . Used . | . . . . . . Hacking Detections 6 | . 2 4 . . . Full Trace Events 2 | . 1 1 . . . Feedback Events . | . . . . . . Feedback Blocked . | . . . . . . Robot Schematics Acquired . | . . . . . . Robots Built . | . . . . . . Authchips . | . . . . . . Time . | . . . . . . Total Robot Build Rating . | . . . . . . Part Schematics Acquired 2 | . . 2 . . . Parts Built . | . . . . . . Authchips . | . . . . . . Time . | . . . . . . Total Part Build Rating . | . . . . . . Parts Repaired . | . . . . . . Time . | . . . . . . Parts Recycled . | . . . . . . Recycled Matter . | . . . . . . Retrieved Matter . | . . . . . . Retrieved Components . | . . . . . . Parts Scanalyzed 2 | . . 2 . . . Part Schematics Acquired 2 | . . 2 . . . Parts Damaged . | . . . . . . Bothacking | -11 -10 -9 -9 -9 -8 ------------ Run | Yrd Mat Mat Min Exi Min Used RIF Installer . | . . . . . . Robots Hacked . | . . . . . . Non-combat . | . . . . . . Combat . | . . . . . . Robot Hacks Applied . | . . . . . . Relay Couplers Released . | . . . . . . Fabnet Peak Effective % . | . . . . . . Robots Rewired 3 | . . . . 3 . Allies Hacked . | . . . . . . Hacks Repelled . | . . . . . . Allies | -11 -10 -9 -9 -9 -8 -------- Run | Yrd Mat Mat Min Exi Min Total Allies 3 | . . . . 3 . Largest Group 3 | . . . . 3 1 Highest-Rated Group 37 | . . . . 37 21 Highest-Rated Ally 21 | . . . . 21 21 Total Orders . | . . . . . . Ally Attacks 5 | . . . . . 5 Total Damage 123 | . . . . . 123 Kills . | . . . . . . Allies Corrupted . | . . . . . . Allies Melted . | . . . . . . Intel | -11 -10 -9 -9 -9 -8 ------- Run | Yrd Mat Mat Min Exi Min Active Infowar (turns) . | . . . . . . Robot Analysis Total . | . . . . . . Derelict Logs Recovered 1 | . . . 1 . . Drone Launches . | . . . . . . Drone Recoveries . | . . . . . . Exploration | -11 -10 -9 -9 -9 -8 ------------- Run | Yrd Mat Mat Min Exi Min Turns Passed 2721 | 66 253 726 419 943 314 Spaces Moved 1252 | 44 160 309 194 459 86 Core 8 | 8 . . . . . Treads . | . . . . . . Legs 1121 | 36 160 186 194 459 86 Wheels 123 | . . 123 . . . Hover . | . . . . . . Flight . | . . . . . . Fastest Speed 50 | 50 120 110 197 197 195 Average Speed 169 | 118 120 137 199 197 196 Slowest Speed 480 | 190 120 480 200 197 197 Overloaded Moves . | . . . . . . Propulsion Burnouts . | . . . . . . Robots Hopped . | . . . . . . Potential Cave-ins . | . . . . . . Cave-ins Triggered . | . . . . . . Exploration Rate (%) 37 | 4 25 32 47 91 24 Regions Visited 5 Branch Regions 3 Pre-discovered Areas . | . . . . . . Known Exits Taken . | . . . . . . Unknown Exits Taken 5 | 1 1 1 1 1 . Scrap Searched . | . . . . . . Spaces Dug . | . . . . . . Terrain Destroyed 8 | . . 8 . . . Melee . | . . . . . . Projectile . | . . . . . . AOE 8 | . . 8 . . . Terrain Rammed . | . . . . . . Walls Destroyed . | . . . . . . Machines Disabled . | . . . . . . Actions | -11 -10 -9 -9 -9 -8 --------- Run | Yrd Mat Mat Min Exi Min Total 1619 | 55 198 489 215 503 159 Wait 21 | . . 14 . . 7 Move 1247 | 43 159 308 193 458 86 Hop . | . . . . . . Pick Up 63 | 6 7 35 5 4 6 Fast Attach 20 | 6 . 13 1 . . Attach 18 | . . 7 2 . 9 Detach 4 | . . 3 . . 1 Swap 18 | . 6 11 1 . . Drop 59 | . 11 28 6 9 5 Fire 132 | . 15 70 7 . 40 Melee 5 | . . . . . 5 Ram . | . . . . . . Kick . | . . . . . . Crush . | . . . . . . Escape Stasis . | . . . . . . Rewire 32 | . . . . 32 . Trap . | . . . . . . Miscellaneous . | . . . . . . Route ------- -11/Scrapyard -10/Materials -9/Materials -9/Mines (discovered 2 exits: Mat / *Exi) -9/Exiles -8/Mines History --------- Turn | Location | Event 39 | -11/Scrapyard | Discovered new exit (range 15) 67 | -11/Scrapyard | Entered Materials 237 | -10/Materials | Discovered new exit (range 16) 302 | -10/Materials | Build established: Mutant 320 | -10/Materials | Entered another Materials area 320 | -9/Materials | Evolved 2 slots: Propulsion x2 630 | -9/Materials | Discovered new exit (range 12) 868 | -9/Materials | Lost 4 parts (1n1u2w) 1046 | -9/Materials | Entered Mines 1357 | -9/Mines | Met a Derelict shopkeep closing up shop 1406 | -9/Mines | Identified exit to Materials 1457 | -9/Mines | Deemed a non-threat by the Exiles lab entrance 1457 | -9/Mines | Discovered new exit (range 5) 1465 | -9/Mines | Entered Exiles 1465 | -9/Exiles | Found Exiles lab destroyed 1705 | -9/Exiles | Opened EX-Vault 1718 | -9/Exiles | Found Army-in-a-Box 2385 | -9/Exiles | Discovered new exit (range 14) 2408 | -9/Exiles | Entered Mines 2408 | -8/Mines | Accompanied by 3 allies 2575 | -8/Mines | Core integrity fell below 50% 2703 | -8/Mines | Core integrity fell below 20% 2722 | -8/Mines | Destroyed by G-47 Trooper with Particle Gun Last Messages --------------- 02703_ Destroyed Melee Analysis Suite. 02703_ L-31 Rogue system corrupted by crushing effect. 02704_ L-31 Rogue system terminally corrupted. 02704_ Imp. Ion Engine fried. 02704_ Core Shielding fried. 02704_ Katana fried. 02704_ K-01 Serf collects debris. 02705_ Critical hit (Burn: +37). 02707_ Imp. Carbon-fiber Leg destroyed. 02707_ K-01 Serf collects debris. 02713_ Cld. Ion Engine destroyed. 02713_ Critical hit (Burn: +37). 02714_ Aluminum Leg destroyed. 02714_ G-47 Trooper destroyed. 02716_ K-01 Serf collects debris. 02720_ G-47 Trooper destroyed. 02720_ Switching to secondary target: G-47 Trooper. 02720_ K-01 Serf collects debris. Map ----- +----------------------------------------------------+ | "%" ## ##### ### ??" ###???? | | ?########" ### #???# #?????????" ##??? | | ????????#*###?# ##### #????????? ???? | | ????????# #???# #????????? ????? | | ????????# #???#######%###??????? ????? | | ????????#!#?????????# #??????? ?????? | | ???????##!#######???### #???????# #?????? | | ?????###!*[## ##???## ##??????# ##????? | | ????## *% [% [ #??## ##?????# ###??? | | ????# %%% #??# #????## ##?? | | ????# [!%% #??# ##??## #?? | | ????# ## =! #??# #### ##?? | | ????## #?###### #?# [ * ###??? | | ?????##????????# ##?## = ##????? | | ????????????????##???#### ##?????? | | ????????????????????????## ##??????? | | ????????????????????????## ##???????? | | ????????????????????????# ###????????? | | ????????????????????????# ##??????????? | | ???????????????????????## ##???????????? | | ???????????????????????# ##????????????? | | ???????????????????????# k ##????? #?????? | | ???????????????# ##??## gg#???"" #?????? | | ???????????????# # = ## """ #?????? | | ???????????????# %%%[ #?????? | | ???????????????## @%= #?????? | | ????????????????# ### #### #?????? | | ???????????????# #??####???######?????? | | ???????????????# ?????????????????????? | | ???????????????# ??????????????????????? | | ???????????????## ???????????????????????? | | ????????????????#????????????????????????? | | ?????????????????????????????????????????? | | ?????????????????????????????????????????? | | ?????????????????????????????????????????? | | ?????????????????????????????????????????? | | ?????????????????????????????????????????? | | ?????????????????????????????????????????? | | | | | | | | | | | | | | | | | | | | | | | | | +----------------------------------------------------+ Best States ------------- Heat Dissipation 28 Energy Generation 14 Energy Capacity 280 Matter Stores 300 Matter Capacity 300 Sight Range 16 Terrain Scan Density 10 Armor Coverage 225 Utility Shielding 33 Evasion (%) 55 Targeting Accuracy 5 Item Schematics ----------------- Wheel | -9/Materials | Scanalyzed Shield Generator | -9/Materials | Scanalyzed Robot Schematics ------------------ None Fabricated ------------ Nothing Repaired ---------- Nothing Alien Tech Used ----------------- None Achievements -------------- None Challenges ------------ None Game ------ Seed BraceGatlingDeconstructor Manual? 0 Play Time 00:27:47 Cumulative 116.3 hours Start 2025.05.12 @ 17:28:27 End 2025.05.12 @ 19:19:13 Sessions 1 Manual Loads 0 Difficulty Rogue Special Mode None Game No. 99 Rogue 99 Adventurer 0 Explorer 0 Win Type - Total 1 Types 1/0/0/0/0/0/0/0/0/0 Lore% 47 Gallery% 47 Achievement% 45 Wizard Run 0 Options --------- Layout 1 ASCII 0 Keyboard 0 Movement Mouse Keybinds 0 Fullscreen 1 Font 24/Smallcaps Map View 50x35 Zoom Use 0% Tactical HUD 1 Map Filters NONE Filters NONE Steam 1 RUN: 3e623960-7a44-41cd-9a93-1ce36ebca39e